bitfinex/quotes_BTCUSD_20250328
["timestamp","ask_amount","ask_price","bid_price","bid_amount"]
[1743133760135,3.28584427,86946.0,86945.0,0.0001694]
[1743133762551,1.71224627,86946.0,86945.0,0.0001694]
[1743133762753,3.28584427,86946.0,86945.0,0.0001694]
[1743133763116,3.40010191,86946.0,86945.0,0.0001694]
[1743133764634,3.38206423,86946.0,86945.0,0.0001694]
[1743133765727,3.27927493,86946.0,86945.0,0.0001694]
[1743133766794,3.15107493,86946.0,86945.0,0.0001694]
[1743133767010,3.27927493,86946.0,86945.0,0.0001694]
[1743133768014,3.29731269,86946.0,86945.0,0.0001694]
[1743133772983,1.85191469,86946.0,86945.0,0.0001694]
[1743133773194,3.29731269,86946.0,86945.0,0.0001694]
[1743133774609,3.03301729,86946.0,86945.0,0.0001694]
[1743133777064,2.90481729,86946.0,86945.0,0.0001694]
[1743133777366,3.03301729,86946.0,86945.0,0.0001694]
[1743133777638,3.05105467,86946.0,86945.0,0.0001694]
[1743133780346,2.92285467,86946.0,86945.0,0.0001694]
[1743133780550,3.16531231,86946.0,86945.0,0.0001694]
[1743133782873,3.03711231,86946.0,86945.0,0.0001694]
[1743133783079,3.16531231,86946.0,86945.0,0.0001694]
[1743133783372,3.05105467,86946.0,86945.0,0.0001694]
[1743133784114,3.03301729,86946.0,86945.0,0.0001694]
[1743133784317,1.41633829,86946.0,86945.0,0.0001694]
[1743133784540,1.76583229,86946.0,86945.0,0.0001694]
[1743133784840,1.46583229,86946.0,86945.0,0.0001694]
[1743133785596,1.8093694,86946.0,86945.0,0.0001694]
[1743133786396,1.77454655,86946.0,86945.0,0.0001694]
[1743133786599,2.99819444,86946.0,86945.0,0.0001694]
[1743133788938,1.57083283,86946.0,86945.0,0.0001694]
[1743133789137,3.01623083,86946.0,86945.0,0.0001694]
[1743133793094,2.88803083,86946.0,86945.0,0.0001694]
[1743133793262,1.73722583,86946.0,86945.0,0.0001694]
[1743133793466,1.62296819,86946.0,86945.0,0.2301994]
[1743133793635,1.62296819,86946.0,86945.0,0.3075994]
[1743133794024,1.62296819,86946.0,86945.0,0.0775694]
[1743133794589,1.6049318,86946.0,86945.0,0.0775694]
[1743133797625,1.62296783,86946.0,86945.0,0.0775694]
[1743133799093,1.32837483,86946.0,86945.0,0.0775694]
[1743133799312,1.32837483,86946.0,86945.0,0.1362704]
[1743133800333,1.32337483,86946.0,86945.0,0.1362704]
[1743133800511,1.32337483,86946.0,86945.0,0.1247694]
[1743133800891,1.32737483,86946.0,86945.0,0.3547994]
[1743133803280,1.32737483,86946.0,86945.0,0.0775694]
[1743133804728,1.3093388,86946.0,86945.0,0.0775694]
[1743133807592,1.3093388,86946.0,86945.0,0.0001694]
[1743133808043,1.42359644,86946.0,86945.0,0.0001694]
[1743133809672,2.86899444,86946.0,86945.0,0.0001694]
[1743133810090,1.42359644,86946.0,86945.0,0.0001694]
[1743133810289,2.86899444,86946.0,86945.0,0.0001694]
[1743133810495,2.98325208,86946.0,86945.0,0.0001694]
[1743133810905,2.98825208,86946.0,86945.0,0.0001694]
[1743133811315,3.02306049,86946.0,86945.0,0.0001694]
[1743133813362,3.09826049,86946.0,86945.0,0.0001694]
[1743133814081,3.08926049,86946.0,86945.0,0.0001694]
[1743133814400,3.09826049,86946.0,86945.0,0.0001694]
[1743133814801,3.09426049,86946.0,86945.0,0.0001694]
[1743133815129,3.09926049,86946.0,86945.0,0.0001694]
[1743133816498,3.09426049,86946.0,86945.0,0.0001694]
[1743133816791,3.14576049,86946.0,86945.0,0.0001694]
[1743133817660,3.16379868,86946.0,86945.0,0.0001694]
[1743133820825,1.71840068,86946.0,86945.0,0.0001694]
[1743133821027,3.16379868,86946.0,86945.0,0.0001694]
[1743133821434,3.04954104,86946.0,86945.0,0.0001694]
[1743133821642,2.92284104,86946.0,86945.0,0.0001694]
[1743133821992,3.05100104,86946.0,86945.0,0.0001694]
[1743133822554,2.88803263,86946.0,86945.0,0.0001694]
[1743133822923,3.01619263,86946.0,86945.0,0.0001694]
[1743133824436,2.88803263,86946.0,86945.0,0.0001694]
[1743133824588,2.99815444,86946.0,86945.0,0.0001694]
[1743133825284,2.98425208,86946.0,86945.0,0.0001694]
[1743133825514,2.99815444,86946.0,86945.0,0.0001694]
[1743133825906,2.86999444,86946.0,86945.0,0.0001694]
[1743133826121,2.99815444,86946.0,86945.0,0.0001694]
[1743133826633,2.86999444,86946.0,86945.0,0.0001694]
[1743133826845,2.99815444,86946.0,86945.0,0.0001694]
[1743133827553,2.86999444,86946.0,86945.0,0.0001694]
[1743133827753,2.99815444,86946.0,86945.0,0.0001694]
[1743133827969,3.01619186,86946.0,86945.0,0.0001694]
[1743133828451,2.88803186,86946.0,86945.0,0.0001694]
[1743133828658,3.01619186,86946.0,86945.0,0.0001694]
[1743133830493,2.88803186,86946.0,86945.0,0.0001694]
[1743133830652,3.01619186,86946.0,86945.0,0.0001694]
[1743133831249,2.88803186,86946.0,86945.0,0.0001694]
[1743133831463,3.01619186,86946.0,86945.0,0.0001694]
[1743133831862,2.88803186,86946.0,86945.0,0.0001694]
[1743133832102,3.01619186,86946.0,86945.0,0.0001694]
[1743133833484,2.88803186,86946.0,86945.0,0.0001694]
[1743133833684,3.01619186,86946.0,86945.0,0.0001694]
[1743133834762,2.99815444,86946.0,86945.0,0.0001694]
[1743133834949,2.86999444,86946.0,86945.0,0.0001694]
[1743133835109,2.99815444,86946.0,86945.0,0.0001694]
[1743133837000,3.03472425,86946.0,86945.0,0.0001694]
[1743133837366,3.06954594,86946.0,86945.0,0.0001694]
[1743133837698,3.08758332,86946.0,86945.0,0.0001694]
[1743133841910,2.95942332,86946.0,86945.0,0.0001694]
[1743133842122,3.08758332,86946.0,86945.0,0.0001694]
[1743133843276,2.95942332,86946.0,86945.0,0.0001694]
[1743133843557,3.05101351,86946.0,86945.0,0.0001694]
[1743133844607,3.03297613,86946.0,86945.0,0.0001694]
[1743133846586,2.90481613,86946.0,86945.0,0.0001694]
[1743133846885,3.03297613,86946.0,86945.0,0.0001694]
[1743133847117,3.14723377,86946.0,86945.0,0.0001694]
[1743133847679,3.16527109,86946.0,86945.0,0.0001694]
[1743133852699,1.71987309,86946.0,86945.0,0.0001694]
[1743133852876,3.16527109,86946.0,86945.0,0.0001694]
[1743133854706,3.14723377,86946.0,86945.0,0.0001694]
[1743133855637,3.15223377,86946.0,86945.0,0.0001694]
[1743133855809,0.005,86942.0,86920.0,0.06772983]
[1743133856034,0.3,86939.0,86920.0,0.06772983]
[1743133856154,0.3,86929.0,86920.0,0.06772983]
[1743133856356,0.3,86927.0,86920.0,0.06772983]
[1743133856563,0.24241764,86928.0,86921.0,0.230093]
[1743133856564,0.3,86925.0,86921.0,0.230093]
[1743133856763,0.3,86923.0,86920.0,0.06772983]
[1743133856984,0.41425764,86923.0,86920.0,0.06772983]
[1743133857587,0.43229607,86923.0,86920.0,0.06772983]
[1743133858556,1.0,86922.0,86920.0,0.06772983]
[1743133858875,0.11425764,86921.0,86920.0,0.06772983]
[1743133860118,1.11425764,86921.0,86920.0,0.06772983]
[1743133860775,1.11525764,86921.0,86920.0,0.06772983]
[1743133861376,1.001,86921.0,86920.0,0.06772983]
[1743133861788,1.003,86921.0,86920.0,0.06772983]
[1743133862197,1.003,86921.0,86920.0,0.29782583]
[1743133863635,1.003,86921.0,86920.0,0.06772983]
[1743133863866,1.003,86921.0,86920.0,0.07923383]
[1743133864494,1.003,86921.0,86920.0,0.12863383]
[1743133864720,1.003,86921.0,86920.0,0.12880323]
[1743133864932,1.0033388,86921.0,86920.0,0.12880323]
[1743133867764,1.02137671,86921.0,86920.0,0.12880323]
[1743133874560,1.0033388,86921.0,86920.0,0.12880323]
[1743133877876,1.02137671,86921.0,86920.0,0.12880323]
[1743133881769,1.02137671,86921.0,86920.0,0.07940323]
[1743133882448,1.0033388,86921.0,86920.0,0.07940323]
[1743133882749,1.02137659,86921.0,86920.0,0.07940323]
[1743133882945,1.0033388,86921.0,86920.0,0.07940323]
[1743133885680,1.02137671,86921.0,86920.0,0.07940323]
[1743133893683,1.02137671,86921.0,86920.0,0.0116734]
[1743133894510,1.0033388,86921.0,86920.0,0.0116734]
[1743133898440,1.0033388,86921.0,86920.0,0.0001694]
[1743133898856,1.12186672,86921.0,86920.0,0.0001694]
[1743133899239,1.06907689,86921.0,86920.0,0.0001694]
[1743133900090,1.06607689,86921.0,86920.0,0.0001694]
[1743133900292,1.06907689,86921.0,86920.0,0.0001694]
[1743133901015,1.06907689,86921.0,86918.0,0.0066744]
[1743133901817,1.06707689,86921.0,86918.0,0.0066744]
[1743133902180,1.06907689,86921.0,86919.0,0.230097]
[1743133902829,1.06907689,86921.0,86918.0,0.2367734]
[1743133903026,1.06707689,86921.0,86918.0,0.2367734]
[1743133903454,1.06907689,86921.0,86918.0,0.2367734]
[1743133904159,1.06807689,86921.0,86918.0,0.2367734]
[1743133904398,1.06907689,86921.0,86918.0,0.2367734]
[1743133904827,1.06707689,86921.0,86918.0,0.2367734]
[1743133905224,1.06907689,86921.0,86918.0,0.2367734]
[1743133905883,1.06907689,86921.0,86916.0,0.241611]
[1743133906732,1.06707689,86921.0,86916.0,0.241611]
[1743133907003,1.06607689,86921.0,86916.0,0.241611]
[1743133907365,1.06707689,86921.0,86916.0,0.241611]
[1743133908101,1.06907689,86921.0,86916.0,0.241611]
[1743133908732,1.06907689,86921.0,86918.0,0.241606]
[1743133909503,1.06707689,86921.0,86918.0,0.011505]
[1743133909883,1.06807689,86921.0,86918.0,0.011505]
[1743133910084,1.06807689,86921.0,86919.0,0.2416]
[1743133910270,1.06907689,86921.0,86919.0,0.2416]
[1743133911010,1.06807689,86921.0,86919.0,0.2416]
[1743133911535,1.06907689,86921.0,86919.0,0.2416]
[1743133911712,1.06707689,86921.0,86919.0,0.2416]
[1743133912116,1.02137689,86921.0,86920.0,0.011504]
[1743133913284,1.01937689,86921.0,86920.0,0.011504]
[1743133913490,1.02137689,86921.0,86920.0,0.011504]
[1743133913915,1.02037689,86921.0,86920.0,0.011504]
[1743133914259,1.02137689,86921.0,86920.0,0.011504]
[1743133914613,1.0033388,86921.0,86920.0,0.011504]
[1743133917905,1.02137686,86921.0,86920.0,0.011504]
[1743133918476,1.02137686,86921.0,86918.0,0.230099]
[1743133918903,1.02137686,86921.0,86916.0,0.0001694]
[1743133919102,1.06677686,86921.0,86919.0,0.011504]
[1743133919296,1.06477686,86921.0,86919.0,0.011504]
[1743133919565,1.06477686,86921.0,86918.0,0.241604]
[1743133919703,1.06677686,86921.0,86918.0,0.241604]
[1743133920109,1.06577686,86921.0,86918.0,0.241604]
[1743133920451,1.06577686,86921.0,86916.0,0.2417794]
[1743133920753,1.06677686,86921.0,86917.0,0.241607]
[1743133920952,1.06677686,86921.0,86918.0,0.011505]
[1743133921091,1.06677686,86921.0,86918.0,0.241604]
[1743133921301,1.06577686,86921.0,86918.0,0.241604]
[1743133921655,1.06477686,86921.0,86918.0,0.241604]
[1743133921856,1.06677686,86921.0,86917.0,0.241607]
[1743133922019,1.06577686,86921.0,86917.0,0.241607]
[1743133922360,1.06377686,86921.0,86917.0,0.241607]
[1743133923060,1.06577686,86921.0,86917.0,0.241607]
[1743133923494,1.06677686,86921.0,86917.0,0.241607]
[1743133923617,1.06577686,86921.0,86918.0,0.011505]
[1743133924040,1.06677686,86921.0,86918.0,0.011505]
[1743133924537,1.06677686,86921.0,86919.0,0.2416]
[1743133924538,1.0487388,86921.0,86919.0,0.2416]
[1743133924749,1.0457388,86921.0,86919.0,0.2416]
[1743133925174,1.0487388,86921.0,86919.0,0.2416]
[1743133925622,1.0467388,86921.0,86919.0,0.2416]
[1743133925821,1.0487388,86921.0,86919.0,0.2416]
[1743133926462,1.0477388,86921.0,86919.0,0.2416]
[1743133926663,1.0487388,86921.0,86919.0,0.2416]
[1743133927634,1.06677715,86921.0,86919.0,0.2416]
[1743133929439,1.06677715,86921.0,86919.0,0.011504]
[1743133930552,1.06677715,86921.0,86918.0,0.011505]
[1743133930759,1.18103479,86921.0,86918.0,0.011505]
[1743133931600,1.17803479,86921.0,86918.0,0.011505]
[1743133931911,1.18003479,86921.0,86918.0,0.011505]
[1743133932910,1.18103479,86921.0,86918.0,0.011505]
[1743133933817,1.06677715,86921.0,86918.0,0.011505]
[1743133934259,1.06677715,86921.0,86917.0,0.2417764]
[1743133934460,1.06677715,86921.0,86917.0,0.0001694]
[1743133934753,1.0487388,86921.0,86917.0,0.0001694]
[1743133935152,1.0467388,86921.0,86917.0,0.0001694]
[1743133935654,1.0487388,86921.0,86917.0,0.0001694]
[1743133936663,1.0477388,86921.0,86917.0,0.0001694]
[1743133937019,1.0487388,86921.0,86917.0,0.0001694]
[1743133938895,1.16299644,86921.0,86917.0,0.0001694]
[1743133939371,1.18103492,86921.0,86917.0,0.0001694]
[1743133942567,1.06677728,86921.0,86918.0,0.241604]
[1743133943512,1.06677728,86921.0,86920.0,0.230096]
[1743133943692,1.06677728,86921.0,86918.0,0.241604]
[1743133943911,1.06577728,86921.0,86918.0,0.241604]
[1743133944114,1.06677728,86921.0,86918.0,0.241604]
[1743133944375,1.06577728,86921.0,86920.0,0.2416]
[1743133944528,1.0457388,86921.0,86920.0,0.2416]
[1743133944736,1.0487388,86921.0,86920.0,0.2416]
[1743133945037,1.0477388,86921.0,86920.0,0.2416]
[1743133945257,1.0457388,86921.0,86920.0,0.2416]
[1743133945756,1.0477388,86921.0,86920.0,0.2416]
[1743133946439,1.0487388,86921.0,86920.0,0.2416]
[1743133946778,1.0477388,86921.0,86920.0,0.2416]
[1743133947136,1.0487388,86921.0,86920.0,0.2416]
[1743133949214,1.06677712,86921.0,86920.0,0.2416]
[1743133949390,1.06677712,86921.0,86920.0,0.011504]
[1743133950532,1.06677712,86921.0,86918.0,0.241604]
[1743133951124,1.06677712,86921.0,86919.0,0.241601]
[1743133951293,1.06577712,86921.0,86919.0,0.241601]
[1743133951499,1.06377712,86921.0,86918.0,0.241604]
[1743133951730,1.06677712,86921.0,86918.0,0.241604]
[1743133952222,1.06477712,86921.0,86917.0,0.0001694]
[1743133952423,1.06477712,86921.0,86917.0,0.2302714]
[1743133952651,1.06677712,86921.0,86917.0,0.2302714]
[1743133953612,1.06577712,86921.0,86917.0,0.2302714]
[1743133953821,1.06377712,86921.0,86917.0,0.2417764]
[1743133953986,1.06477712,86921.0,86917.0,0.0116744]
[1743133954197,1.06577712,86921.0,86917.0,0.0116744]
[1743133954521,1.06677712,86921.0,86917.0,0.0116744]
[1743133954722,0.03245206,86920.0,86918.0,0.230101]
[1743133954856,0.03245206,86920.0,86917.0,0.2417764]
[1743133955137,1.0487388,86921.0,86917.0,0.0116744]
[1743133955493,1.0487388,86921.0,86917.0,0.2417764]
[1743133955963,1.0467388,86921.0,86919.0,0.241601]
[1743133956870,1.0457388,86921.0,86919.0,0.241601]
[1743133957111,0.003,86920.0,86919.0,0.241601]
[1743133957574,0.002,86920.0,86919.0,0.241601]
[1743133957797,1.0467388,86921.0,86919.0,0.241601]
[1743133958015,1.0457388,86921.0,86919.0,0.241601]
[1743133958213,0.0477388,86921.0,86919.0,0.241601]
[1743133958478,1.001,86920.0,86919.0,0.241601]
[1743133958725,1.0,86920.0,86919.0,0.241601]
[1743133959450,1.01803837,86920.0,86919.0,0.241601]
[1743133959766,1.01803837,86920.0,86917.0,0.2417764]
[1743133960453,1.02003837,86920.0,86917.0,0.2417764]
[1743133960788,1.02103837,86920.0,86917.0,0.2417764]
[1743133960984,1.01803837,86920.0,86918.0,0.241605]
[1743133961193,1.02003837,86920.0,86919.0,0.011504]
[1743133961404,1.02103837,86920.0,86919.0,0.011504]
[1743133961966,1.01903837,86920.0,86919.0,0.011504]
[1743133962203,1.01903837,86920.0,86918.0,0.241605]
[1743133962859,1.01903837,86920.0,86919.0,0.011504]
[1743133963208,1.02103837,86920.0,86919.0,0.011504]
[1743133963733,1.02003837,86920.0,86919.0,0.011504]
[1743133964007,1.01903837,86920.0,86919.0,0.011504]
[1743133964210,1.02103837,86920.0,86919.0,0.011504]
[1743133966853,1.02103837,86920.0,86918.0,0.241605]
[1743133967798,1.01903837,86920.0,86918.0,0.241605]
[1743133968271,1.02003837,86920.0,86918.0,0.241605]
[1743133968613,1.02103837,86920.0,86918.0,0.241605]
[1743133969051,1.02103837,86920.0,86917.0,0.0001694]
[1743133969322,1.02103837,86920.0,86917.0,0.0116744]
[1743133969868,1.02103837,86920.0,86918.0,0.0001694]
[1743133970085,1.01937717,86920.0,86918.0,0.0001694]
[1743133970290,1.02037717,86920.0,86918.0,0.0001694]
[1743133970742,1.01937717,86920.0,86918.0,0.0001694]
[1743133970971,1.01837717,86920.0,86918.0,0.0001694]
[1743133971202,1.02137717,86920.0,86918.0,0.0001694]
[1743133971463,1.13563481,86920.0,86918.0,0.0001694]
[1743133971925,1.02137717,86920.0,86918.0,0.0001694]
[1743133974534,1.0033388,86920.0,86918.0,0.0001694]
[1743133977949,1.02137733,86920.0,86918.0,0.0001694]
[1743133983069,1.13563497,86920.0,86918.0,0.0001694]
[1743133983227,0.11425764,86919.0,86918.0,0.0001694]
[1743133983401,0.22851528,86919.0,86918.0,0.0001694]
[1743133983803,0.11425764,86919.0,86918.0,0.0001694]
[1743133984477,0.11430214,86919.0,86918.0,0.0001694]
[1743133984769,1.0030445,86919.0,86918.0,0.0116744]
[1743133984968,1.1311245,86919.0,86918.0,0.0116744]
[1743133989154,1.14916267,86919.0,86918.0,0.0116744]
[1743133990571,1.02108267,86919.0,86918.0,0.0116744]
[1743133993989,1.02108267,86919.0,86918.0,0.0001694]
[1743133994192,1.02108267,86919.0,86918.0,0.0116744]
[1743133994607,1.0030445,86919.0,86918.0,0.0116744]
[1743133999418,1.02108267,86919.0,86918.0,0.0116744]
[1743134001694,1.02108267,86919.0,86918.0,0.0001694]
[1743134002771,1.02108267,86919.0,86918.0,0.0116744]
[1743134004515,1.0030445,86919.0,86918.0,0.0116744]
[1743134005477,1.0033833,86919.0,86918.0,0.0116744]
[1743134005703,1.0033833,86919.0,86918.0,0.0001694]
[1743134006368,1.0033833,86919.0,86918.0,0.0116744]
[1743134007289,1.0033833,86919.0,86918.0,0.0001694]
[1743134008283,1.0033833,86919.0,86918.0,0.0116744]
[1743134009374,1.02142147,86919.0,86918.0,0.0116744]
[1743134014569,1.0033833,86919.0,86918.0,0.0116744]
[1743134019199,1.02142147,86919.0,86918.0,0.0116744]
[1743134024480,1.0033833,86919.0,86918.0,0.0116744]
[1743134037671,1.02142147,86919.0,86918.0,0.0116744]
[1743134044798,1.0033833,86919.0,86918.0,0.0116744]
[1743134047729,1.02142147,86919.0,86918.0,0.0116744]
[1743134054557,1.0033833,86919.0,86918.0,0.0116744]
[1743134057983,1.02142147,86919.0,86918.0,0.0116744]
[1743134060605,1.02142147,86919.0,86918.0,0.0001694]
[1743134060751,1.02142147,86919.0,86918.0,0.0116744]
[1743134064602,1.0033833,86919.0,86918.0,0.0116744]
[1743134066054,1.0033833,86919.0,86918.0,0.02247372]
[1743134067957,1.02142147,86919.0,86918.0,0.02247372]
[1743134074555,1.0033833,86919.0,86918.0,0.02247372]
[1743134099277,1.02142147,86919.0,86918.0,0.02247372]
[1743134105154,1.0033833,86919.0,86918.0,0.02247372]
[1743134108846,1.02142147,86919.0,86918.0,0.02247372]
[1743134109432,1.02142147,86919.0,86918.0,0.01096872]
[1743134110748,1.02142147,86919.0,86918.0,0.02247372]
[1743134111797,1.48137911,86919.0,86918.0,0.01096872]
[1743134111926,1.82877798,86919.0,86918.0,0.01096872]
[1743134112138,1.86374768,86919.0,86918.0,0.01096872]
[1743134112337,1.88025168,86919.0,86918.0,0.01096872]
[1743134112538,0.546606,86918.0,86917.0,0.0001694]
[1743134112752,2.38418898,86918.0,86917.0,0.0001694]
[1743134114233,2.38418898,86918.0,86911.0,0.0001693]
[1743134114234,0.546622,86912.0,86911.0,0.0001693]
[1743134114421,0.546622,86912.0,86904.0,0.0001693]
[1743134114422,0.669042,86905.0,86904.0,0.0001693]
[1743134114633,2.22869764,86905.0,86904.0,0.0001693]
[1743134114785,2.37792498,86905.0,86904.0,0.0001693]
[1743134115880,3.37792498,86905.0,86904.0,0.0001693]
[1743134116428,3.50592498,86905.0,86904.0,0.0001693]
[1743134116640,2.06052698,86905.0,86904.0,0.0001693]
[1743134116841,3.50592498,86905.0,86904.0,0.0001693]
[1743134117293,3.01702534,86905.0,86904.0,0.0001693]
[1743134117487,1.66465764,86905.0,86904.0,0.0001693]
[1743134117690,2.98205564,86905.0,86904.0,0.0001693]
[1743134117891,1.69533864,86905.0,86904.0,0.0001693]
[1743134118197,1.45611864,86905.0,86904.0,0.0001693]
[1743134118396,1.75611864,86905.0,86904.0,0.0001693]
[1743134118604,1.81482063,86905.0,86904.0,0.0001693]
[1743134118810,1.68682063,86905.0,86904.0,0.0001693]
[1743134119015,1.81482063,86905.0,86904.0,0.0001693]
[1743134119676,1.68682063,86905.0,86904.0,0.0001693]
[1743134119870,1.76762063,86905.0,86904.0,0.0001693]
[1743134120253,1.70891864,86905.0,86904.0,0.0001693]
[1743134121677,1.466661,86905.0,86904.0,0.2303083]
[1743134121912,1.3,86905.0,86904.0,0.2418143]
[1743134122604,1.0,86905.0,86904.0,0.2418143]
[1743134122831,1.0,86905.0,86904.0,0.2303083]
[1743134123028,1.3,86905.0,86904.0,0.2303083]
[1743134123231,1.0,86905.0,86904.0,0.2303083]
[1743134123430,1.4128,86905.0,86904.0,0.2303083]
[1743134123732,1.43084409,86905.0,86904.0,0.2303083]
[1743134124347,1.4128,86905.0,86904.0,0.2303083]
[1743134126158,1.4178,86905.0,86904.0,0.2303083]
[1743134131143,1.4268,86905.0,86904.0,0.2303083]
[1743134132240,1.314,86905.0,86904.0,0.2303083]
[1743134132371,1.309,86905.0,86904.0,0.2303083]
[1743134132777,1.312,86905.0,86904.0,0.2303083]
[1743134132949,1.312,86905.0,86904.0,0.2418143]
[1743134134353,1.312,86905.0,86904.0,0.2303083]
[1743134135559,1.42625764,86905.0,86904.0,0.2303083]
[1743134135960,1.312,86905.0,86904.0,0.2303083]
[1743134137655,1.33004332,86905.0,86904.0,0.2303083]
[1743134144763,1.312,86905.0,86904.0,0.2303083]
[1743134144965,1.312,86905.0,86904.0,0.2418143]
[1743134145958,1.012,86905.0,86904.0,0.2418143]
[1743134152850,1.012,86905.0,86904.0,0.25335874]
[1743134153062,1.012,86905.0,86904.0,0.2418143]
[1743134170909,1.03004247,86905.0,86904.0,0.2418143]
[1743134174463,1.012,86905.0,86904.0,0.2418143]
[1743134187391,1.003,86905.0,86904.0,0.2418143]
[1743134187696,1.02104234,86905.0,86904.0,0.2418143]
[1743134188539,1.01804234,86905.0,86904.0,0.2418143]
[1743134188709,1.02004234,86905.0,86904.0,0.2418143]
[1743134188938,1.02104234,86905.0,86904.0,0.2418143]
[1743134190134,1.02104234,86905.0,86904.0,0.49731279]
[1743134190135,3.4e-07,86905.0,86904.0,0.49731279]
[1743134190349,3.4e-07,86905.0,86904.0,0.52231279]
[1743134192079,3.4e-07,86905.0,86904.0,0.49731279]
[1743134192284,3.4e-07,86905.0,86904.0,0.52231279]
[1743134192717,0.0003388,86911.0,86910.0,0.33316985]
[1743134192891,0.0003388,86911.0,86910.0,0.44742749]
[1743134193470,0.0003388,86911.0,86910.0,0.49542749]
[1743134193818,1.0003388,86911.0,86910.0,0.49542749]
[1743134194197,1.0003388,86911.0,86910.0,0.49742749]
[1743134194540,1.0003388,86911.0,86910.0,0.49842749]
[1743134197984,1.0003388,86911.0,86910.0,0.51022753]
[1743134202640,0.0241658,86911.0,86910.0,0.95078893]
[1743134202847,8e-07,86911.0,86910.0,0.95078893]
[1743134203285,8e-07,86911.0,86910.0,1.25078893]
[1743134203496,8e-07,86911.0,86910.0,1.25578893]
[1743134205034,8e-07,86911.0,86910.0,1.37608893]
[1743134205253,0.0003441,86919.0,86918.0,0.566606]
[1743134205451,0.0003441,86919.0,86918.0,1.54902449]
[1743134205995,0.0003441,86919.0,86918.0,1.67032449]
[1743134206191,0.0003441,86919.0,86918.0,1.54902449]
[1743134206866,0.0479,86953.0,86945.0,0.241531]
[1743134207059,0.0479,86953.0,86945.0,0.25607185]
[1743134207969,1.0003388,86946.0,86945.0,0.25607185]
[1743134208170,1.00038334,86946.0,86945.0,0.25607185]
[1743134208543,1.01841694,86946.0,86945.0,0.25607185]
[1743134208747,1.02041694,86946.0,86945.0,0.25607185]
[1743134209214,1.01841694,86946.0,86945.0,0.25607185]
[1743134209613,1.01941694,86946.0,86945.0,0.25607185]
[1743134211143,1.01941694,86946.0,86945.0,0.37032949]
[1743134212351,1.01941694,86946.0,86945.0,0.38188298]
[1743134212951,1.01841694,86946.0,86945.0,0.38188298]
[1743134213386,1.01841694,86946.0,86945.0,0.38488298]
[1743134214524,1.00038334,86946.0,86945.0,0.38488298]
[1743134225239,1.00038334,86946.0,86945.0,0.51272298]
[1743134227701,1.01841637,86946.0,86945.0,0.51272298]
[1743134234601,1.00038334,86946.0,86945.0,0.51272298]
[1743134239048,1.01841621,86946.0,86945.0,0.51272298]
[1743134239756,1.01841621,86946.0,86945.0,0.27062534]
[1743134243631,1.01841621,86946.0,86945.0,0.38488298]
[1743134244730,1.00038334,86946.0,86945.0,0.38488298]
[1743134249083,1.01841617,86946.0,86945.0,0.38488298]
[1743134250668,1.01841617,86946.0,86945.0,0.46378298]
[1743134253362,1.01841617,86946.0,86945.0,0.87934438]
[1743134254109,1.01841617,86946.0,86945.0,1.00718438]
[1743134254561,1.00038334,86946.0,86945.0,1.00718438]
[1743134259597,1.00038334,86946.0,86945.0,0.92828438]
[1743134260004,1.00038334,86946.0,86945.0,0.67164589]
[1743134260154,1.00038334,86946.0,86945.0,0.68618674]
[1743134261588,1.00038334,86946.0,86945.0,0.88124438]
[1743134264318,1.00038334,86946.0,86945.0,0.80044438]
[1743134264474,1.00038334,86946.0,86945.0,0.82346499]
[1743134266198,1.00038334,86946.0,86945.0,0.70920735]
[1743134267265,1.00038334,86946.0,86945.0,0.68618674]
[1743134267862,1.01841652,86946.0,86945.0,0.68618674]
[1743134274616,1.00038334,86946.0,86945.0,0.68618674]
[1743134275781,1.00038334,86946.0,86945.0,0.80044438]
[1743134277747,1.01841649,86946.0,86945.0,0.80044438]
[1743134284653,1.00038334,86946.0,86945.0,0.80044438]
[1743134284761,1.00038334,86946.0,86945.0,0.67468574]
[1743134284968,1.14582167,86946.0,86945.0,0.003]
[1743134285175,1.14132134,86946.0,86945.0,0.003]
[1743134285378,1.32149734,86946.0,86945.0,0.003]
[1743134285616,1.14132134,86946.0,86945.0,0.003]
[1743134286145,1.14132134,86946.0,86945.0,0.002]
[1743134286899,0.019238,86945.0,86937.0,0.230051]
[1743134287765,0.01803519,86944.0,86937.0,0.230051]
[1743134288164,1.0,86941.0,86937.0,0.230051]
[1743134288376,1.0,86941.0,86937.0,0.231051]
[1743134288579,1.0,86941.0,86937.0,0.230051]
[1743134288959,1.0,86941.0,86939.0,0.230046]
[1743134290541,1.0,86941.0,86939.0,0.231046]
[1743134293554,1.0,86941.0,86939.0,0.001]
[1743134298629,1.0,86941.0,86940.0,0.230043]
[1743134302923,1.0,86941.0,86940.0,0.241545]
[1743134305983,1.0,86941.0,86940.0,0.230043]
[1743134306967,1.0,86941.0,86940.0,0.241545]
[1743134307518,1.0,86941.0,86940.0,0.230043]
[1743134307719,1.0,86941.0,86940.0,0.231043]
[1743134313777,1.098938,86941.0,86940.0,0.001]
[1743134313975,2.81494664,86941.0,86940.0,0.001]
[1743134314214,3.00659364,86941.0,86940.0,0.001]
[1743134314417,2.75949864,86941.0,86940.0,0.001]
[1743134314574,2.48623564,86941.0,86940.0,0.001]
[1743134314900,1.71381364,86941.0,86940.0,0.001]
[1743134315053,1.71581364,86941.0,86940.0,0.001]
[1743134315257,1.71615244,86941.0,86940.0,0.001]
[1743134315590,1.56353444,86941.0,86940.0,0.001]
[1743134315808,1.69137444,86941.0,86940.0,0.001]
[1743134316197,0.3,86940.0,86930.0,0.230068]
[1743134316504,0.11425764,86939.0,86930.0,0.230068]
[1743134316859,0.019238,86934.0,86930.0,0.230068]
[1743134317461,0.019238,86934.0,86932.0,0.230064]
[1743134317662,0.0372744,86934.0,86932.0,0.230064]
[1743134318935,1.0,86933.0,86930.0,0.230068]
[1743134319447,1.0,86933.0,86930.0,0.231068]
[1743134319652,1.0,86933.0,86930.0,0.230068]
[1743134320172,1.0,86933.0,86932.0,0.001]
[1743134320300,1.0,86933.0,86930.0,0.230068]
[1743134320508,1.0,86933.0,86932.0,0.230064]
[1743134321299,1.0,86933.0,86932.0,0.231064]
[1743134322973,1.0,86933.0,86932.0,0.001]
[1743134323402,1.0,86933.0,86932.0,0.231064]
[1743134324136,1.0,86933.0,86932.0,0.001]
[1743134325508,1.019238,86933.0,86932.0,0.001]
[1743134327027,1.095838,86933.0,86932.0,0.001]
[1743134327481,1.395838,86933.0,86932.0,0.001]
[1743134327782,1.443138,86933.0,86932.0,0.001]
[1743134328369,1.444138,86933.0,86932.0,0.001]
[1743134329491,0.019238,86926.0,86922.0,0.230089]
[1743134329637,0.019238,86926.0,86922.0,0.230091]